bitfinex-derivatives/quotes_ETHF0:USTF0_20260315
["timestamp","ask_amount","ask_price","bid_price","bid_amount"]
[1773582764387,1.27464144,2092.7,2092.1,2.63879326]
[1773582764685,1.27464144,2093.0,2092.5,2.63879326]
[1773582764875,7.77379278,2093.2,2092.5,2.63879326]
[1773582765075,12.32544096,2093.1,2092.5,2.63879326]
[1773582765276,7.72952182,2093.2,2092.7,2.63879326]
[1773582765883,6.26,2093.2,2092.7,2.63879326]
[1773582766181,6.26,2093.3,2092.7,2.63879326]
[1773582767479,7.61370195,2093.3,2092.7,2.63879326]
[1773582771588,1.33159607,2093.2,2092.7,2.63879326]
[1773582772288,1.32767917,2093.2,2092.7,2.63879326]
[1773582772788,6.26,2093.3,2092.7,2.63879326]
[1773582773384,7.5829649,2093.3,2092.7,2.63879326]
[1773582775489,6.26,2093.3,2092.7,2.63879326]
[1773582775693,7.57102991,2093.5,2092.9,2.8413865]
[1773582775892,6.06406675,2093.4,2092.9,2.8413865]
[1773582776391,7.37051361,2093.4,2092.9,2.8413865]
[1773582778491,1.33998489,2093.3,2092.9,2.8413865]
[1773582778692,1.33998489,2093.3,2092.5,2.8413865]
[1773582780897,6.06406675,2093.4,2092.6,1.82595822]
[1773582781090,6.06406675,2093.4,2092.7,2.8413865]
[1773582782298,7.39318338,2093.4,2092.7,2.8413865]
[1773582783298,1.32911663,2093.4,2092.7,2.8413865]
[1773582784400,7.56523139,2093.5,2092.7,2.8413865]
[1773582784599,1.30569786,2093.4,2092.7,2.8413865]
[1773582785801,6.26,2093.5,2092.7,2.8413865]
[1773582786098,7.5560551,2093.5,2092.7,2.8413865]
[1773582791198,1.31871209,2093.4,2092.7,2.8413865]
[1773582793204,7.57161348,2093.6,2092.7,2.8413865]
[1773582793400,1.31161348,2093.6,2092.7,2.8413865]
[1773582793601,1.31161348,2093.6,2092.9,2.8413865]
[1773582793904,7.3731916,2093.6,2092.9,2.8413865]
[1773582794101,1.31161348,2093.6,2092.9,2.8413865]
[1773582794606,7.40291951,2093.7,2092.9,2.8413865]
[1773582794802,1.30277008,2093.7,2092.9,2.8413865]
[1773582795203,6.10175206,2093.7,2092.9,2.8413865]
[1773582795406,12.02387698,2094.0,2093.1,2.8413865]
[1773582795407,1.41150449,2093.9,2093.1,2.8413865]
[1773582796105,7.5131599,2093.9,2093.1,2.8413865]
[1773582796306,1.41150449,2093.9,2093.1,2.8413865]
[1773582796605,6.26,2094.0,2093.2,1.82595822]
[1773582796808,6.26,2094.0,2093.3,2.8413865]
[1773582797104,7.63629027,2094.0,2093.3,2.8413865]
[1773582797496,1.37629027,2094.0,2093.3,2.8413865]
[1773582797900,1.37629027,2094.0,2093.4,2.8413865]
[1773582800415,0.00598749,2094.1,2093.4,2.8413865]
[1773582801014,1.38056575,2094.1,2093.4,2.8413865]
[1773582802813,0.00598749,2094.1,2093.4,2.8413865]
[1773582803017,1.37092898,2094.1,2093.5,2.65086831]
[1773582803217,1.37092898,2094.1,2093.5,2.65543701]
[1773582805713,1.44247767,2094.0,2093.5,2.65543701]
[1773582807315,0.00598749,2094.1,2093.5,2.65543701]
[1773582807511,1.44434733,2094.1,2093.5,2.65543701]
[1773582826726,0.00598749,2094.1,2093.5,2.65543701]
[1773582839842,6.1588099,2094.1,2093.5,2.65543701]
[1773582840041,0.00598749,2094.1,2093.5,2.65543701]
[1773582840640,6.15134948,2094.1,2093.5,2.65543701]
[1773582840841,0.00598749,2094.1,2093.5,2.65543701]
[1773582841243,3.99047921,2094.4,2093.6,2.7290165]
[1773582841440,3.99047921,2094.5,2093.6,2.7290165]
[1773582841943,5.3051126,2094.6,2093.6,2.7290165]
[1773582842145,5.3092147,2094.6,2093.8,2.7290165]
[1773582842346,0.0041021,2094.6,2093.8,2.7290165]
[1773582844738,6.66022142,2094.9,2094.1,2.7290165]
[1773582844947,2.67504253,2094.9,2094.1,2.7290165]
[1773582845838,2.67865517,2094.9,2094.1,2.7290165]
[1773582849042,2.16826022,2095.4,2093.5,23.2025687]
[1773582849043,2.67504253,2095.4,2094.9,1.64867632]
[1773582849342,2.67504253,2096.0,2094.9,1.64867632]
[1773582849538,2.67504253,2096.0,2095.0,42.44954556]
[1773582849847,2.67504253,2096.0,2095.1,1.64954556]
[1773582850042,2.67504253,2095.9,2095.1,0.00554978]
[1773582850242,2.67504253,2095.7,2095.1,0.00554978]
[1773582850738,2.67504253,2095.6,2095.1,1.93244786]
[1773582852044,2.67504253,2095.6,2095.1,0.00554978]
[1773582854847,2.67504253,2095.6,2095.1,1.91716051]
[1773582856650,2.67504253,2095.8,2095.1,1.91716051]
[1773582858947,18.18909969,2097.1,2095.5,1.90990094]
[1773582858948,2.67504253,2096.5,2095.5,1.90990094]
[1773582859342,2.67504253,2096.5,2095.5,42.70990094]
[1773582860052,2.68052324,2096.5,2095.6,1.94321718]
[1773582860246,2.68052324,2096.5,2095.5,40.8]
[1773582860449,2.67504253,2096.3,2095.5,40.8]
[1773582860756,2.67504253,2096.3,2095.2,1.90686382]
[1773582861141,2.67504253,2096.3,2095.1,0.00554978]
[1773582861142,2.67504253,2096.1,2095.4,1.9062552]
[1773582862947,2.67504253,2096.1,2095.1,0.00554978]
[1773582862948,2.83055553,2095.4,2095.1,0.00554978]
[1773582863251,2.83055553,2095.7,2095.1,1.9394209]
[1773582863449,6.257,2096.0,2095.1,1.9394209]
[1773582863653,2.83055553,2095.9,2095.1,1.9394209]
[1773582868858,2.83055553,2095.9,2095.2,40.8]
[1773582869058,2.83055553,2095.9,2095.3,2.58639651]
[1773582871457,2.83055553,2095.9,2095.1,2.56181345]
[1773582872058,2.83055553,2095.9,2095.1,43.36181345]
[1773582872459,2.83055553,2095.9,2095.1,0.00554978]
[1773582872765,2.83055553,2095.7,2095.1,0.00554978]
[1773582874164,6.255,2096.2,2095.1,2.55843932]
[1773582874165,2.83055553,2096.0,2095.1,2.55843932]
[1773582874362,2.83055553,2096.0,2095.3,2.55288954]
[1773582875064,2.83055553,2096.0,2095.5,2.5710611]
[1773582877364,2.83055553,2096.0,2095.3,2.43592069]
[1773582878564,2.83055553,2095.8,2095.1,0.00554978]
[1773582879066,2.83055553,2095.6,2094.9,4.25203553]
[1773582879267,2.83055553,2095.6,2095.0,2.43020023]
[1773582879960,2.83055553,2095.6,2095.0,2.435459]
[1773582880763,2.83055553,2095.6,2095.0,0.00525877]
[1773582883162,2.83055553,2095.6,2095.0,2.47420644]
[1773582885168,2.83055553,2095.5,2095.0,2.47420644]
[1773582885765,1.8218353,2095.9,2095.0,2.47420644]
[1773582885966,2.83055553,2095.7,2095.0,2.47420644]
[1773582886970,2.83055553,2095.6,2095.0,2.47420644]
[1773582888173,2.83055553,2096.0,2095.4,2.47394112]
[1773582888470,2.83055553,2095.9,2095.2,2.61526307]
[1773582888673,2.83055553,2095.9,2095.1,2.61526307]
[1773582889067,2.83055553,2095.9,2095.2,2.6130586]
[1773582890069,2.83055553,2095.9,2095.0,2.62996816]
[1773582890667,2.83055553,2095.7,2095.0,2.62996816]
[1773582890868,2.83055553,2095.5,2095.0,0.00525877]
[1773582891671,2.83055553,2095.5,2095.0,2.62778032]
[1773582893976,2.83055553,2095.5,2095.0,0.00525877]
[1773582895371,2.83055553,2095.5,2095.0,2.63386182]
[1773582895572,2.83055553,2095.5,2095.0,0.00525877]
[1773582901785,3.14721025,2095.4,2094.8,40.8]
[1773582902882,3.14721025,2095.4,2094.8,40.8046459]
[1773582903383,3.14721025,2095.4,2094.8,1e-08]
[1773582903686,1.8218353,2095.3,2094.8,1e-08]
[1773582903887,3.14721025,2095.1,2094.8,1e-08]
[1773582904086,3.14721025,2095.1,2094.6,40.8]
[1773582904581,3.14721025,2094.7,2093.9,2.62363169]
[1773582904779,3.14721025,2094.6,2094.0,2.62363169]
[1773582904977,3.15317811,2094.6,2094.0,2.62730823]
[1773582905480,3.14721025,2094.4,2093.8,2.63458474]
[1773582906076,3.15317811,2094.6,2094.1,2.68281825]
[1773582906276,0.00596786,2094.6,2094.3,2.68281825]
[1773582906681,1.8218353,2095.2,2094.3,2.6881399]
[1773582906881,3.14721025,2094.9,2094.3,2.6881399]
[1773582907986,3.1513283,2094.9,2094.3,2.6881399]
[1773582912291,3.1513283,2094.9,2094.3,0.00532165]
[1773582921900,3.1513283,2094.9,2094.3,2.62237379]
[1773582933705,3.22775464,2094.5,2094.0,0.2345758]
[1773582934006,1.8218353,2094.6,2093.7,10.00626336]
[1773582934007,3.22775464,2094.3,2093.7,2.55024076]
[1773582934800,3.22775464,2094.3,2093.7,2.55518769]
[1773582937110,3.22775464,2094.8,2093.7,2.55518769]
[1773582937314,3.22775464,2094.8,2093.7,2.7927339]
[1773582939108,3.22775464,2094.8,2093.7,3.0315039]
[1773582940109,3.22775464,2094.8,2093.7,13.03776726]
[1773582940310,3.22775464,2094.8,2093.8,2.54675899]
[1773582940510,3.22775464,2094.8,2094.0,2.54662768]
[1773582947215,3.22775464,2094.8,2094.0,2.78869959]
[1773582952018,3.22775464,2094.8,2094.0,0.24207191]
[1773582952215,3.22775464,2094.8,2094.0,2.38847546]
[1773582953119,3.22775464,2094.8,2093.9,23.52808886]
[1773582953622,3.22775464,2094.8,2093.7,2.44388799]
[1773582954319,2.94507514,2094.6,2093.7,0.00494693]
[1773582954714,2.94507514,2094.6,2093.7,0.24039169]
[1773582957023,2.94507514,2094.6,2093.5,2.43862754]
[1773582957625,2.94507514,2094.6,2093.5,40.8]
[1773582958025,2.94507514,2094.6,2093.5,40.8045594]
[1773582958425,2.94507514,2094.6,2093.5,43.24002525]
[1773582962021,0.23868,2094.5,2093.5,40.8045594]
[1773582962228,2.94507514,2094.4,2093.5,40.8045594]
[1773582962619,2.94507514,2094.4,2093.5,43.23888171]
[1773582965531,2.94507514,2094.4,2093.6,2.4238151]
[1773582973738,2.94507514,2094.7,2093.6,2.4238151]
[1773582982150,3.07848749,2094.5,2093.6,2.4238151]
[1773582984351,3.07848749,2094.5,2093.6,2.77249047]
[1773582989453,3.07848749,2094.5,2093.5,2.76013347]
[1773582990459,3.07848749,2094.5,2093.6,43.53557203]
[1773582991353,3.07848749,2094.3,2093.6,43.53557203]
[1773582991857,3.07848749,2094.3,2093.7,2.72800066]
[1773582997764,3.07848749,2094.3,2093.6,43.50720597]
[1773582999664,3.07848749,2094.3,2093.7,2.70382588]
[1773583005962,3.07848749,2094.3,2093.8,2.64664315]
[1773583006668,3.07848749,2094.6,2093.9,2.65219385]
[1773583008570,3.07848749,2094.6,2094.1,2.87717331]
[1773583023179,2.9805753,2094.8,2094.3,2.88828057]
[1773583023585,0.00411805,2094.9,2094.3,2.88828057]
[1773583025279,0.00411805,2094.9,2094.5,2.88828057]
[1773583026186,2.98469335,2094.9,2094.5,2.88828057]
[1773583032391,2.97993005,2094.9,2094.5,2.88828057]
[1773583033389,0.00565031,2094.9,2094.5,2.88828057]
[1773583034789,2.9805753,2095.5,2094.8,2.88828057]
[1773583035890,2.9844167,2095.5,2094.8,2.88828057]
[1773583038194,2.9844167,2095.5,2095.0,2.88828057]
[1773583038500,2.9844167,2095.5,2095.0,2.89175924]
[1773583042596,2.87905658,2095.4,2095.0,0.00347867]
[1773583042797,2.87905658,2095.4,2094.6,2.99782834]
[1773583043394,1.82421322,2095.3,2094.6,2.99782834]
[1773583043603,2.87905658,2095.2,2094.5,43.79782834]
[1773583043802,2.87905658,2095.2,2094.5,43.8039287]
[1773583044298,2.87905658,2095.2,2094.6,2.99782834]
[1773583049300,2.87905658,2095.2,2094.5,40.80610036]
[1773583049497,2.87905658,2095.2,2094.5,43.8039287]
[1773583052202,2.87905658,2095.2,2094.5,3.0039287]
[1773583056203,2.87905658,2095.2,2094.5,2.98561755]
[1773583062414,2.87905658,2095.2,2094.5,0.00610036]
[1773583062616,2.87905658,2095.2,2094.5,2.99396766]
[1773583063509,2.87905658,2095.2,2094.5,0.00610036]
[1773583064710,2.87905658,2095.2,2094.4,2.99782834]
[1773583065814,2.87905658,2095.2,2094.4,3.00394208]
[1773583073020,6.404,2095.1,2094.4,3.00394208]
[1773583073219,2.79922553,2095.0,2094.4,3.00394208]
[1773583076319,2.79922553,2095.3,2094.7,2.89262131]
[1773583076515,2.79922553,2095.3,2094.5,2.89262131]
[1773583084528,2.79922553,2095.2,2094.5,2.89262131]
[1773583084730,2.80306693,2095.5,2094.5,2.89262131]
[1773583090134,2.79922553,2095.4,2094.5,2.89262131]
[1773583092435,0.0038414,2095.5,2094.6,2.89262131]
[1773583093035,2.80306693,2095.5,2094.6,2.89262131]
[1773583093234,0.0038414,2095.5,2094.6,2.89262131]
[1773583095339,2.80306693,2095.5,2094.6,2.89262131]
[1773583097939,2.79922553,2095.8,2094.9,2.89262131]
[1773583099045,2.80502261,2095.8,2094.9,2.89262131]
[1773583105344,2.80502261,2095.8,2094.9,3.13327678]
[1773583105743,2.80502261,2095.8,2094.9,2.89262131]
[1773583106049,2.78458899,2095.6,2094.5,2.99382672]
[1773583107350,2.78458899,2095.4,2094.5,2.99382672]
[1773583109050,2.78458899,2095.4,2094.5,3.2270094]
[1773583118749,2.78458899,2095.3,2094.5,3.2270094]
[1773583124554,2.78458899,2095.3,2094.9,2.99382672]
[1773583132062,2.06109247,2095.7,2094.9,2.99382672]
[1773583132252,2.89574875,2095.5,2094.9,2.99382672]
[1773583147075,2.89574875,2095.7,2094.9,2.99382672]
[1773583147280,2.89574875,2095.7,2095.1,2.98925133]
[1773583148881,2.89574875,2095.4,2094.8,3.2271978]
[1773583151790,2.89574875,2095.4,2094.8,2.98925133]
[1773583153782,2.89574875,2095.4,2094.9,2.98925133]
[1773583154274,6.454,2095.5,2095.0,1.82255247]
[1773583154481,2.89574875,2095.5,2095.1,2.98925133]
[1773583154983,2.89574875,2095.7,2095.1,2.98925133]
[1773583160082,2.90154583,2095.8,2095.1,2.98925133]
[1773583160384,2.89574875,2096.0,2095.1,2.98925133]
[1773583160586,2.89574875,2096.0,2095.2,2.98925133]
[1773583161387,2.89970189,2096.0,2095.2,2.98925133]
[1773583164288,2.89970189,2096.0,2095.4,2.95256782]
[1773583164783,2.93076185,2096.0,2095.4,2.95256782]
[1773583166989,5.88430336,2096.6,2095.7,1.82255247]
[1773583166990,2.92680871,2096.2,2095.7,1.82255247]
[1773583167191,2.92680871,2096.5,2095.8,2.95256782]
[1773583168189,2.9317739,2096.5,2095.8,2.95256782]
[1773583172586,7.35537921,2097.4,2096.0,2.95256782]
[1773583172787,1.82255247,2097.2,2096.4,2.95256782]
[1773583172987,2.92680871,2096.9,2096.1,2.95256782]
[1773583173290,1.82255247,2096.8,2095.9,2.95256782]
[1773583173492,1.62680871,2096.7,2095.9,2.95256782]
[1773583173688,2.92680871,2096.5,2096.0,40.8]
[1773583174090,2.92680871,2096.3,2096.0,40.8]
[1773583174288,2.92680871,2096.3,2095.9,2.95715666]
[1773583175395,0.00436722,2096.7,2096.2,2.95256782]
[1773583175684,2.92680871,2097.0,2096.3,2.95256782]
[1773583175886,2.92680871,2097.0,2096.5,2.95256782]
[1773583176693,2.93194882,2097.0,2096.5,2.95256782]
[1773583177091,2.92680871,2097.4,2096.8,1.82255247]
[1773583177300,2.92680871,2097.4,2096.9,2.95256782]
[1773583178197,2.9301654,2097.4,2096.9,2.95256782]
[1773583178397,0.00335669,2097.4,2096.9,2.95256782]
[1773583179196,2.9301654,2097.4,2096.9,2.95256782]
[1773583179791,0.00335669,2097.4,2096.9,2.95256782]
[1773583180297,5.68768208,2097.4,2096.9,2.95256782]
[1773583180596,0.00335669,2097.4,2096.9,2.95256782]
[1773583182799,0.00335669,2097.4,2097.1,2.95256782]
[1773583183190,3.31427632,2097.5,2097.1,2.95256782]
[1773583183395,2.92680871,2098.1,2097.1,2.95256782]
[1773583183595,2.92680871,2097.8,2097.1,2.95256782]
[1773583184097,2.92680871,2097.6,2097.1,2.95256782]
[1773583184793,17.74342144,2100.3,2097.1,2.95256782]
[1773583184794,2.92680871,2098.9,2097.3,2.95256782]
[1773583185093,2.92680871,2098.7,2097.3,2.95256782]
[1773583185296,2.92680871,2098.5,2097.3,2.95256782]
[1773583185691,2.92680871,2098.3,2097.3,2.95256782]
[1773583186196,2.92680871,2098.1,2097.3,2.95256782]
[1773583186798,2.92680871,2097.9,2097.3,2.95256782]
[1773583186994,2.92680871,2098.4,2097.3,2.95256782]
[1773583187301,2.92680871,2098.3,2097.3,2.95256782]
[1773583190506,2.92680871,2098.1,2097.3,2.95256782]
[1773583197908,2.92680871,2098.1,2097.0,41.04035552]
[1773583198102,2.92680871,2098.1,2097.1,3.33619975]
[1773583199606,3.33362303,2097.9,2097.0,44.13619975]
[1773583199807,3.33362303,2097.9,2097.0,3.33619975]
[1773583200209,3.33362303,2097.9,2096.9,3.33619975]
[1773583200410,3.33362303,2097.7,2096.8,3.33619975]
[1773583200805,3.33362303,2097.5,2096.8,3.33619975]
[1773583202009,3.33362303,2097.5,2096.4,3.33619975]
[1773583202207,1.81867289,2098.4,2096.4,3.33619975]
[1773583202208,0.00337577,2098.5,2096.5,19.20295713]
[1773583202406,23.0038302,2099.0,2098.3,0.00908452]
[1773583202610,3.33812027,2099.1,2098.3,0.00908452]
[1773583203011,3.33812027,2099.1,2098.6,6.53383118]
[1773583203212,3.33812027,2098.9,2098.5,3.65330577]
[1773583203418,3.34249231,2098.9,2098.2,3.33619975]
[1773583203711,32.86845323,2098.8,2098.2,3.33619975]
[1773583204416,32.86845323,2098.8,2098.2,3.34131303]
[1773583204609,26.33745323,2098.8,2098.2,3.34131303]
[1773583204805,32.87645323,2098.8,2098.2,3.34131303]
[1773583205209,6.54737204,2098.9,2098.2,3.34131303]
[1773583205406,32.88482527,2098.9,2098.2,3.34131303]
[1773583205815,26.34182527,2098.9,2098.2,3.34131303]
[1773583206017,6.548,2098.8,2098.2,3.34131303]
[1773583206217,3.33362303,2098.7,2098.2,3.34131303]
[1773583206618,29.5568302,2098.6,2098.2,3.34131303]
[1773583206812,19.72272272,2098.6,2098.2,3.34131303]
[1773583207521,13.16972272,2098.6,2098.2,3.34131303]
[1773583207717,19.73072272,2098.6,2098.2,3.34131303]
[1773583208116,16.50135354,2098.5,2098.2,3.34131303]
[1773583208321,3.33362303,2098.4,2098.0,3.33619975]
[1773583208520,3.33362303,2098.3,2097.8,5.9501276]
[1773583208722,3.33362303,2098.3,2097.9,3.33619975]
[1773583209215,3.33362303,2098.3,2098.0,3.33619975]
[1773583210119,3.33362303,2098.3,2097.9,0.00395618]
[1773583210120,9.83609969,2098.2,2097.9,3.34015593]
[1773583210319,23.0038302,2098.2,2097.9,3.34015593]
[1773583211015,26.33745323,2098.2,2097.9,0.00395618]
[1773583211218,22.27984863,2098.2,2097.9,3.34015593]
[1773583212016,32.21047166,2098.2,2097.9,0.00395618]
[1773583212216,3.33362303,2098.1,2097.9,0.00395618]
[1773583212421,10.69237801,2098.1,2097.7,50.08632735]
[1773583212622,22.27984863,2098.0,2097.8,3.33619975]
[1773583213218,3.33362303,2098.3,2097.9,3.33619975]
[1773583213423,6.604,2098.2,2097.9,3.3410144]
[1773583213625,6.601,2098.2,2097.9,3.3410144]
[1773583214323,9.93462303,2098.2,2097.9,3.3410144]
[1773583215019,3.33362303,2098.4,2097.9,3.3410144]
[1773583215220,9.94562303,2098.3,2097.9,3.3410144]
[1773583215420,6.609,2098.2,2097.9,3.3410144]
[1773583215720,9.94262303,2098.2,2097.9,3.3410144]
[1773583215922,3.33362303,2098.1,2097.9,0.00481465]
[1773583216424,9.94262303,2098.2,2097.9,0.00481465]
[1773583216625,17.30137801,2098.2,2097.9,0.00481465]
[1773583216828,9.94262303,2098.2,2097.9,0.00481465]
[1773583217021,7.35875498,2098.1,2097.9,0.00481465]
[1773583217421,9.94262303,2098.2,2097.9,0.00481465]
[1773583217621,13.98775498,2098.1,2097.9,0.00481465]
[1773583217823,17.32137801,2098.1,2097.9,0.00481465]
[1773583218022,9.96262303,2098.1,2097.9,0.00481465]
[1773583219422,3.33362303,2098.0,2097.7,9.28632735]
[1773583219926,3.33362303,2098.0,2097.6,50.08632735]
[1773583220324,3.33362303,2098.0,2097.7,3.33619975]
[1773583220629,3.33362303,2098.6,2097.7,3.34133337]
[1773583220828,3.33362303,2098.4,2097.9,3.33619975]
[1773583221025,6.642,2098.3,2097.9,3.33619975]
[1773583221225,17.33437801,2098.3,2097.9,3.33619975]
[1773583221626,9.97562303,2098.3,2097.9,3.33619975]
[1773583221923,17.33437801,2098.3,2097.9,3.33619975]
[1773583222122,3.33362303,2098.3,2097.9,3.33619975]
[1773583222323,6.646,2098.2,2097.9,3.33619975]
[1773583222525,12.2107579,2098.2,2097.9,3.33619975]
[1773583222728,5.55994325,2098.2,2097.9,3.33619975]
[1773583222930,12.20094325,2098.2,2097.9,3.33619975]
[1773583223331,5.5647579,2098.1,2097.8,11.33225438]
[1773583223533,5.5647579,2098.1,2097.8,5.38212678]
[1773583223928,12.92351288,2098.1,2097.8,5.38212678]
[1773583224129,5.5647579,2098.1,2097.8,5.38212678]
[1773583224425,12.92351288,2098.1,2097.8,5.38212678]
[1773583224625,5.5647579,2098.1,2097.7,5.95526122]
[1773583224831,5.5647579,2098.1,2097.7,0.00513362]
[1773583225032,5.5647579,2097.8,2097.7,0.00513362]
[1773583225231,7.35875498,2097.9,2097.7,5.3872604]
[1773583225431,7.35875498,2097.8,2097.7,0.00513362]
[1773583225935,7.35875498,2097.8,2097.7,5.3872604]
[1773583227736,12.92351288,2097.8,2097.7,0.00513362]
[1773583227932,7.35875498,2097.8,2097.7,0.00513362]
[1773583228138,7.35875498,2097.8,2097.7,5.35323009]
[1773583228338,7.35875498,2097.8,2097.7,0.00513362]
[1773583228537,7.35875498,2097.8,2097.7,5.33690214]
[1773583229139,7.35875498,2097.8,2097.7,0.00513362]
[1773583229537,7.35875498,2097.8,2097.7,5.32346302]
[1773583229742,7.35875498,2097.8,2097.7,0.00513362]
[1773583230339,7.35875498,2097.8,2097.7,5.31151709]
[1773583231744,7.35875498,2097.8,2097.7,0.00513362]
[1773583231946,12.92351288,2097.8,2097.7,0.00513362]
[1773583232145,7.35875498,2097.8,2097.7,5.95526122]
[1773583232343,12.92351288,2097.8,2097.5,12.76083218]
[1773583232543,5.5647579,2097.5,2097.3,7.47087713]
[1773583232744,5.5647579,2097.8,2097.3,12.85300391]
[1773583232945,7.35875498,2097.6,2097.4,5.38212678]
[1773583233346,5.5647579,2097.6,2097.4,0.00360271]
[1773583233546,7.35875498,2097.5,2097.4,0.00360271]
[1773583233742,7.35875498,2097.5,2097.4,5.38572949]
[1773583234243,6.67977718,2097.5,2097.4,5.38572949]
[1773583234550,5.5647579,2097.3,2097.1,40.8]
[1773583234745,4.9227579,2097.3,2097.1,40.8]
[1773583234947,6.67977718,2097.2,2097.0,5.38212678]
[1773583235448,6.67977718,2097.1,2097.0,46.1859938]
[1773583235648,5.99680367,2097.1,2097.0,46.1859938]
[1773583236250,0.00491417,2097.2,2097.0,46.1859938]
[1773583236448,4.86747101,2097.3,2097.0,46.1859938]
[1773583236949,4.86747101,2097.3,2097.0,0.00386702]
[1773583237150,5.5647579,2097.1,2096.8,5.38212678]
[1773583237751,5.5647579,2097.1,2096.7,5.38212678]
[1773583237944,5.5647579,2097.1,2096.7,46.18212678]
[1773583238345,5.57051543,2097.1,2096.7,46.18622312]
[1773583239654,12.30751543,2097.1,2096.7,46.18622312]
[1773583239849,5.5647579,2097.0,2096.7,46.18622312]
[1773583242855,5.5647579,2097.0,2096.7,40.80409634]
[1773583243050,5.5647579,2097.0,2096.5,5.62622351]
[1773583243455,5.5647579,2097.0,2096.5,46.42622351]
[1773583243650,5.5647579,2097.0,2096.5,46.18212678]
[1773583243857,5.5647579,2097.0,2096.5,40.8]
[1773583244058,5.5647579,2097.0,2096.5,40.80393298]
[1773583246556,12.3277579,2097.4,2096.6,5.38212678]
[1773583246756,6.763,2097.3,2096.6,5.38212678]
[1773583246958,12.3277579,2097.3,2096.6,5.38212678]
[1773583247555,12.33217325,2097.3,2096.6,5.38212678]
[1773583247961,5.56917325,2097.3,2096.6,5.38212678]
[1773583248160,6.768,2097.2,2096.6,5.38212678]
[1773583248457,12.3327579,2097.2,2096.6,5.38212678]
[1773583251562,5.5647579,2097.1,2096.6,5.38212678]
[1773583253062,5.5647579,2097.1,2096.6,5.62630668]
[1773583253266,5.5647579,2097.1,2096.6,6.13169593]
[1773583253659,5.5647579,2097.1,2096.6,0.2441799]
[1773583253861,5.5647579,2097.1,2096.6,5.88751603]
[1773583254062,6.05557949,2096.9,2096.6,5.88751603]
[1773583254758,6.05557949,2096.9,2096.5,40.80393298]
[1773583254963,6.05557949,2096.9,2096.3,7.45986881]
[1773583255158,0.00441535,2097.3,2096.3,5.88751603]
[1773583255159,6.05557949,2096.7,2096.3,5.88751603]
[1773583255467,6.05557949,2096.6,2096.3,5.88751603]
[1773583255969,6.05557949,2096.6,2096.3,0.00487133]
[1773583256160,6.05557949,2096.6,2096.0,12.73316476]
[1773583256362,6.05557949,2096.6,2096.1,5.88751603]
[1773583257063,6.05557949,2096.6,2096.1,5.89185771]
[1773583258870,6.05557949,2096.4,2096.1,5.89185771]
[1773583259160,6.795,2096.3,2096.1,5.89185771]
[1773583259557,4.66571802,2096.3,2096.1,5.89185771]
[1773583259759,6.05557949,2096.5,2096.1,5.89185771]
[1773583259959,6.797,2096.4,2096.1,5.89185771]
[1773583260167,12.85257949,2096.4,2096.1,5.89185771]
[1773583261869,6.05557949,2096.3,2096.1,1e-08]
[1773583262068,6.05557949,2096.3,2096.0,5.88751603]
[1773583262464,6.05557949,2096.3,2096.0,5.97621943]
[1773583262667,6.05557949,2096.3,2096.0,46.77621943]
[1773583262967,6.05557949,2096.3,2096.0,52.66816203]
[1773583263263,6.05557949,2096.3,2096.2,3.98475751]
[1773583263464,6.05557949,2096.6,2096.2,9.52009682]
[1773583263664,6.05557949,2096.6,2096.3,5.88751603]
[1773583263865,6.05557949,2096.8,2096.3,5.88751603]
[1773583264065,6.807,2097.0,2096.5,5.88751603]
[1773583264265,12.86257949,2097.0,2096.6,5.88751603]
[1773583264673,6.05557949,2097.1,2096.7,5.88751603]
[1773583264874,6.809,2097.1,2096.8,5.88751603]
[1773583265174,6.05557949,2097.0,2096.6,11.86373546]
[1773583266075,6.05557949,2097.0,2096.6,5.97621943]
[1773583266473,6.05557949,2097.0,2096.6,5.16665207]
[1773583266674,6.05557949,2097.0,2096.4,5.88751603]
[1773583267276,6.05557949,2096.8,2096.4,5.88751603]
[1773583267472,12.86957949,2096.8,2096.4,5.88751603]
[1773583268072,6.05557949,2096.7,2096.4,5.88751603]
[1773583273179,12.86957949,2096.8,2096.4,5.88751603]
[1773583273876,6.05557949,2096.7,2096.4,5.88751603]
[1773583275083,6.05557949,2096.7,2096.3,5.88751603]
[1773583276178,6.05557949,2096.7,2096.3,7.48014294]
[1773583276383,6.05557949,2096.7,2096.2,13.6097153]
[1773583276783,6.05557949,2096.7,2096.2,15.42918068]
[1773583276980,6.05557949,2096.7,2096.1,7.48014294]
[1773583277180,6.05557949,2096.7,2096.0,55.99155092]
[1773583278084,6.05557949,2096.7,2096.0,48.51140798]
[1773583278484,6.05557949,2096.7,2096.0,48.75515745]
[1773583278683,6.05557949,2096.7,2096.1,5.88751603]
[1773583283186,6.05557949,2096.7,2096.0,54.89824078]
[1773583283486,6.05557949,2096.7,2096.0,0.00442657]
[1773583285790,6.05557949,2096.7,2095.6,13.85006474]
[1773583286291,6.05557949,2096.7,2095.8,6.3699218]
[1773583286690,6.05557949,2096.7,2095.8,6.3760526]
[1773583287589,6.23202684,2096.5,2095.5,7.48014294]
[1773583287784,6.23202684,2096.3,2095.4,7.48014294]
[1773583288091,6.23202684,2096.1,2095.3,6.3699218]
[1773583288390,6.23202684,2096.1,2095.1,6.3699218]
[1773583288690,6.23202684,2096.1,2095.1,6.37455711]
[1773583290393,6.23202684,2096.1,2095.1,0.00463531]
[1773583291196,6.57507289,2096.1,2095.1,0.00463531]
[1773583291999,6.23202684,2096.1,2095.1,6.37455711]
[1773583292498,6.23202684,2095.9,2095.1,6.37455711]
[1773583292697,6.23202684,2095.7,2095.1,6.37455711]
[1773583292891,6.23778783,2095.7,2095.1,0.00463531]
[1773583293096,6.23778783,2095.7,2094.9,40.8]
[1773583293398,6.23778783,2095.7,2094.8,6.3699218]
[1773583293593,6.23202684,2095.5,2094.8,6.3699218]
[1773583293801,6.23202684,2095.5,2095.0,6.3699218]
[1773583294199,6.23202684,2095.5,2095.0,6.37443066]
[1773583295705,6.23202684,2095.5,2095.0,0.00450886]
[1773583295904,13.10002684,2095.4,2095.0,6.37443066]
[1773583296201,6.869,2095.3,2095.0,6.37443066]
[1773583296398,13.10102684,2095.3,2095.0,6.37443066]
[1773583297707,6.23202684,2095.2,2095.0,0.00450886]
[1773583298001,6.869,2095.3,2094.8,6.3699218]
[1773583298206,6.23202684,2095.2,2094.8,6.3699218]
[1773583298806,6.23202684,2095.2,2094.8,6.37423785]
[1773583302110,13.10102684,2095.3,2094.8,6.37423785]
[1773583303405,6.23202684,2095.3,2094.8,6.37423785]
[1773583303612,0.00576099,2095.7,2094.8,6.37423785]
[1773583303613,6.881,2095.2,2094.8,6.37423785]
[1773583303800,6.881,2095.3,2094.8,6.37423785]
[1773583305311,6.23202684,2095.4,2094.8,6.37423785]
[1773583305507,6.884,2095.3,2094.8,6.37423785]
[1773583307514,0.00576099,2095.7,2095.1,6.3699218]
[1773583307813,6.23202684,2095.9,2095.1,6.3699218]
[1773583308011,13.12102684,2095.9,2095.1,6.3699218]
[1773583308309,6.23202684,2095.8,2095.1,6.3699218]
[1773583308611,6.23585729,2095.8,2095.1,6.3699218]